bitfinex/quotes_SOLUSD_20260222
["timestamp","ask_amount","ask_price","bid_price","bid_amount"]
[1771726153149,0.47147314,85.659,85.62,4.1951021]
[1771726154436,0.47147314,85.649,85.61,4.1951021]
[1771726156054,0.47147314,85.647,85.61,4.1951021]
[1771726157344,0.14216157,85.644,85.598,0.45490887]
[1771726157545,40.86493554,85.648,85.6,4.1951021]
[1771726157546,0.47147314,85.639,85.6,4.1951021]
[1771726157740,0.47147314,85.637,85.6,4.1951021]
[1771726158058,0.47147314,85.633,85.6,4.1951021]
[1771726158260,0.47147314,85.631,85.6,4.1951021]
[1771726158458,0.47147314,85.631,85.591,0.45490887]
[1771726158644,0.47147314,85.631,85.6,4.1951021]
[1771726159051,0.47147314,85.631,85.591,0.45490887]
[1771726159460,0.47147314,85.629,85.59,4.1951021]
[1771726160360,4.1951021,85.63,85.59,4.1951021]
[1771726160361,0.47147314,85.627,85.59,4.1951021]
[1771726161243,0.47147314,85.627,85.591,0.45490887]
[1771726161567,0.47147314,85.625,85.591,0.45490887]
[1771726163849,0.47147314,85.623,85.591,0.45490887]
[1771726166376,0.47147314,85.621,85.591,0.45490887]
[1771726167047,0.47147314,85.619,85.575,11.68552685]
[1771726167251,0.47147314,85.609,85.576,0.45490887]
[1771726168469,0.47147314,85.607,85.576,0.45490887]
[1771726170973,0.47147314,85.607,85.578,0.45490887]
[1771726171555,0.47147314,85.605,85.578,0.45490887]
[1771726172562,1.16856559,85.59,85.578,0.45490887]
[1771726175857,1.16856559,85.59,85.561,11.68756793]
[1771726176063,2.33713118,85.59,85.562,0.45490887]
[1771726178767,2.33713118,85.59,85.564,0.50212372]
[1771726179093,3.50569677,85.59,85.564,0.50212372]
[1771726179584,0.48841759,85.589,85.564,0.50212372]
[1771726180873,0.48841759,85.589,85.565,11.68702156]
[1771726181579,3.50569677,85.59,85.566,0.50212372]
[1771726181784,0.48841759,85.635,85.591,0.50212372]
[1771726181979,0.48841759,85.609,85.57,4.1951021]
[1771726182286,0.48841759,85.589,85.561,0.50212372]
[1771726182491,0.48841759,85.589,85.558,0.50212372]
[1771726182984,0.48841759,85.587,85.558,0.50212372]
[1771726183587,0.48841759,85.587,85.56,0.50212372]
[1771726185288,1.16878412,85.578,85.56,0.50212372]
[1771726185668,0.48841759,85.577,85.56,0.50212372]
[1771726186083,1.16878412,85.578,85.561,0.50212372]
[1771726186386,0.65232471,85.578,85.561,11.68756793]
[1771726187567,0.65232471,85.578,85.562,0.02044757]
[1771726188296,1.82110883,85.578,85.562,0.02044757]
[1771726189791,1.82110883,85.578,85.56,4.1951021]
[1771726190180,1.82110883,85.578,85.561,0.02197759]
[1771726191296,2.98989295,85.578,85.561,0.02197759]
[1771726191794,2.98989295,85.578,85.562,0.02250155]
[1771726192094,1.16863387,85.59,85.561,11.68756793]
[1771726192275,1.16863387,85.59,85.57,4.1951021]
[1771726195696,1.16863387,85.59,85.571,11.6862021]
[1771726196905,0.51921628,85.588,85.553,29.22143073]
[1771726197100,0.51921628,85.588,85.56,4.1951021]
[1771726199480,1.16863387,85.59,85.561,11.68756793]
[1771726199687,1.16863387,85.59,85.57,4.1951021]
[1771726202297,0.51921628,85.589,85.57,4.1951021]
[1771726203585,0.51921628,85.617,85.571,11.6862021]
[1771726203783,0.51921628,85.617,85.59,4.1951021]
[1771726205387,0.51921628,85.617,85.589,11.68371567]
[1771726207195,0.51921628,85.617,85.581,11.68483658]
[1771726209133,0.51921628,85.617,85.581,40.89692804]
[1771726209912,0.51921628,85.617,85.59,4.19577959]
[1771726210406,0.51921628,85.609,85.574,11.68579241]
[1771726212304,11.68115129,85.608,85.574,11.68579241]
[1771726212513,0.51921628,85.607,85.574,11.68579241]
[1771726216406,0.45898428,85.607,85.574,11.68579241]
[1771726216629,11.68142419,85.606,85.574,11.68579241]
[1771726217714,11.67978696,85.618,85.574,11.68579241]
[1771726217902,11.67978696,85.618,85.575,0.05491149]
[1771726218420,0.50879502,85.617,85.575,0.05491149]
[1771726221117,11.6800598,85.616,85.575,0.05491149]
[1771726221420,0.50879502,85.615,85.575,0.05491149]
[1771726222604,4.19577959,85.61,85.575,0.05491149]
[1771726222923,0.50879502,85.609,85.575,0.05491149]
[1771726224705,0.50879502,85.618,85.581,0.0542328]
[1771726224910,0.50879502,85.618,85.591,0.0542328]
[1771726225410,0.50879502,85.617,85.591,0.0542328]
[1771726225820,0.50879502,85.617,85.574,11.68579241]
[1771726226023,0.50879502,85.609,85.574,11.68579241]
[1771726226227,1.16857242,85.589,85.574,11.68579241]
[1771726228826,0.50879502,85.588,85.561,0.05409218]
[1771726229046,0.50879502,85.588,85.551,0.05409218]
[1771726230624,0.50879502,85.588,85.554,11.68847959]
[1771726231134,14.02100338,85.589,85.554,11.68847959]
[1771726231135,0.50879502,85.586,85.554,11.68847959]
[1771726232431,0.50879502,85.586,85.55,16.12498855]
[1771726232432,0.50879502,85.574,85.55,4.19577959]
[1771726235629,0.50879502,85.574,85.551,11.68893408]
[1771726239431,0.50879502,85.574,85.55,4.19577959]
[1771726240623,0.50879502,85.574,85.55,15.8847905]
[1771726241027,0.50879502,85.574,85.55,15.93846804]
[1771726241243,0.50879502,85.574,85.551,0.05367754]
[1771726254360,4.67521844,85.575,85.551,0.05367754]
[1771726254671,0.49426746,85.588,85.57,4.19577959]
[1771726255585,0.49426746,85.588,85.56,4.19577959]
[1771726255976,0.49426746,85.588,85.561,0.05327043]
[1771726259170,0.49426746,85.588,85.561,11.74083836]
[1771726261988,0.49426746,85.588,85.562,0.05312634]
[1771726262913,2.33714484,85.589,85.562,0.05312634]
[1771726263082,2.33714484,85.589,85.58,4.24888288]
[1771726263584,2.33714484,85.589,85.571,0.05308049]
[1771726264093,2.8314123,85.589,85.571,11.73928259]
[1771726264674,0.49426746,85.588,85.571,11.73928259]
[1771726264873,0.49426746,85.588,85.572,0.05305796]
[1771726265776,0.49426746,85.588,85.56,4.19577959]
[1771726265976,0.49426746,85.587,85.56,4.19577959]
[1771726266297,0.49426746,85.587,85.554,0.05303569]
[1771726267387,0.49426746,85.587,85.561,0.05301367]
[1771726268480,0.49426746,85.587,85.562,0.05297039]
[1771726271996,0.49426746,85.587,85.547,29.22367286]
[1771726272201,0.50316635,85.579,85.543,11.68994237]
[1771726272384,0.50316635,85.579,85.551,0.05286647]
[1771726273912,0.50316635,85.579,85.551,11.74180055]
[1771726274285,0.50316635,85.579,85.552,0.05282655]
[1771726274605,1.16889341,85.572,85.552,0.05282655]
[1771726277397,2.33778682,85.572,85.552,0.05282655]
[1771726278891,0.50316635,85.571,85.552,0.05282655]
[1771726280292,0.50316635,85.571,85.551,11.68893408]
[1771726281101,0.50316635,85.571,85.546,0.05269388]
[1771726281309,0.50316635,85.571,85.541,40.91605194]
[1771726281495,0.50316635,85.571,85.542,0.05267579]
[1771726282287,0.50316635,85.571,85.541,40.91605194]
[1771726282600,0.50316635,85.569,85.541,11.69030055]
[1771726282992,0.50316635,85.549,85.507,0.05265791]
[1771726283396,0.50316635,85.539,85.507,0.05265791]
[1771726283903,0.50316635,85.539,85.502,0.05264023]
[1771726284296,0.50316635,85.529,85.501,11.69576964]
[1771726285188,0.50316635,85.529,85.491,11.69713771]
[1771726286293,0.50316635,85.527,85.491,11.69713771]
[1771726286997,0.50316635,85.527,85.5,4.19832453]
[1771726287306,0.50316635,85.527,85.501,11.69576964]
[1771726287505,0.50316635,85.527,85.502,0.0525884]
[1771726295111,0.50316635,85.55,85.511,0.05245867]
[1771726295317,0.50316635,85.55,85.51,4.19832453]
[1771726295318,0.50316635,85.55,85.521,0.05245867]
[1771726296512,0.50316635,85.55,85.522,0.05242807]
[1771726298917,0.50316635,85.55,85.521,11.69303445]
[1771726299108,0.51093146,85.549,85.521,11.69303445]
[1771726300023,0.51093146,85.549,85.493,58.48396419]
[1771726300024,0.51093146,85.539,85.5,4.25069347]
[1771726300210,0.51093146,85.539,85.51,4.19832453]
[1771726300626,0.51093146,85.539,85.505,0.05235458]
[1771726300929,0.51093146,85.539,85.5,4.25067911]
[1771726301121,0.51093146,85.539,85.501,0.05235458]
[1771726301434,0.51093146,85.539,85.5,45.1337681]
[1771726301727,0.51093146,85.537,85.5,45.1337681]
[1771726303128,0.51093146,85.535,85.5,45.1337681]
[1771726305333,0.51093146,85.535,85.51,4.19832453]
[1771726308230,0.51093146,85.535,85.499,0.05228522]
[1771726308431,0.51093146,85.535,85.51,4.19832453]
[1771726311027,0.51093146,85.533,85.51,4.19832453]
[1771726322539,0.51093146,85.533,85.485,3.69383402]
[1771726322540,0.51093146,85.531,85.49,4.19832453]
[1771726322931,0.51093146,85.531,85.5,4.19832453]
[1771726323244,0.51093146,85.531,85.501,0.05207724]
[1771726326527,0.51093146,85.529,85.501,0.05207724]
[1771726332060,0.50114411,85.527,85.501,0.05207724]
[1771726335045,0.50114411,85.527,85.5,4.20476143]
[1771726336352,0.50114411,85.527,85.501,11.69576964]
[1771726336660,0.50114411,85.527,85.502,0.05191549]
[1771726345954,0.48910028,85.525,85.501,11.69576964]
[1771726349153,0.48910028,85.525,85.492,0.05181235]
[1771726354169,0.48910028,85.523,85.486,11.69769658]
[1771726354378,0.48910028,85.519,85.486,11.69769658]
[1771726358759,0.49529818,85.517,85.482,0.05177343]
[1771726360264,0.49529818,85.517,85.49,4.20476143]
[1771726364180,0.49529818,85.517,85.491,0.05169531]
[1771726364383,0.49529818,85.517,85.5,4.20476143]
[1771726368083,0.49529818,85.515,85.5,4.20476143]
[1771726369985,0.49529818,85.515,85.482,0.0516567]
[1771726370166,0.49529818,85.515,85.5,4.20476143]
[1771726370676,0.49529818,85.513,85.48,4.20476143]
[1771726370880,0.49529818,85.513,85.48,4.25641195]
[1771726371070,0.49529818,85.513,85.49,4.20476143]
[1771726373000,0.49529818,85.511,85.49,4.20476143]
[1771726373283,11.69276101,85.523,85.5,4.68925714]
[1771726375186,11.69303445,85.521,85.5,4.68925714]
[1771726375500,0.49529818,85.52,85.5,4.20476143]
[1771726376296,11.69330791,85.519,85.5,4.20476143]
[1771726376496,0.49529818,85.518,85.5,4.20476143]
[1771726376699,0.49529818,85.518,85.496,0.48449571]
[1771726378082,0.49529818,85.518,85.5,4.20476143]
[1771726379999,29.22589935,85.541,85.5,4.20476143]
[1771726380204,29.22589935,85.541,85.511,0.48449571]
[1771726380697,0.28432314,85.54,85.511,0.48449571]
[1771726382079,0.49529818,85.533,85.511,0.48449571]
[1771726383201,0.49529818,85.533,85.496,0.48449571]
[1771726385202,0.49529818,85.531,85.496,0.48449571]
[1771726387211,0.49529818,85.531,85.498,0.48449571]
[1771726388110,0.4980989,85.529,85.498,0.48449571]
[1771726389107,0.4980989,85.529,85.501,0.50257535]
[1771726391015,11.69207744,85.528,85.501,0.50257535]
[1771726391310,0.4980989,85.527,85.501,0.50257535]
[1771726396501,0.51566751,85.525,85.501,0.50257535]
[1771726401819,0.51566751,85.523,85.501,0.50257535]
[1771726402015,0.51566751,85.523,85.491,0.49565318]
[1771726402723,0.51566751,85.523,85.501,0.49565318]
[1771726405723,0.51566751,85.521,85.501,0.49565318]
[1771726409627,12.20883869,85.52,85.501,0.49565318]
[1771726409825,0.51566751,85.519,85.501,0.49565318]
[1771726414530,11.69344465,85.518,85.501,0.49565318]
[1771726417131,0.51566751,85.518,85.501,0.49565318]
[1771726420029,0.28432314,85.528,85.501,0.49565318]
[1771726420030,11.69358139,85.517,85.501,0.49565318]
[1771726420335,12.18546033,85.517,85.501,0.49565318]
[1771726421817,0.49187894,85.516,85.501,0.49565318]
[1771726423339,11.69385487,85.515,85.501,0.49565318]
[1771726428427,0.49187894,85.515,85.501,0.49565318]
[1771726433751,11.69399162,85.514,85.501,0.49565318]
[1771726435651,0.49187894,85.514,85.501,0.49565318]
[1771726440843,11.69412837,85.513,85.501,0.49565318]
[1771726441044,0.49187894,85.512,85.5,4.20475277]
[1771726442756,0.49187894,85.512,85.487,0.50229211]
[1771726442939,0.49187894,85.51,85.487,0.50229211]
[1771726443135,0.49187894,85.51,85.481,0.50229211]
[1771726444561,0.49187894,85.508,85.481,0.50229211]
[1771726445259,0.49187894,85.508,85.49,4.20475277]
[1771726445455,0.49187894,85.508,85.484,0.50229211]
[1771726446237,0.49187894,85.506,85.484,0.50229211]
[1771726448435,0.51642606,85.504,85.484,0.50229211]
[1771726450257,0.51642606,85.502,85.48,4.20475277]
[1771726451357,0.51642606,85.5,85.48,4.20475277]
[1771726451757,0.51642606,85.5,85.481,0.51049971]
[1771726453666,0.48765327,85.498,85.481,0.51049971]
[1771726455374,11.69631682,85.497,85.481,0.51049971]
[1771726456464,12.18336917,85.502,85.49,4.20717891]
[1771726456672,0.48765327,85.501,85.487,0.51746152]
[1771726457565,11.69590643,85.5,85.48,4.20717891]
[1771726457762,12.1835597,85.5,85.48,4.20717891]
[1771726459571,12.1835597,85.5,85.481,0.51746152]
[1771726462054,11.69590643,85.5,85.481,0.51746152]
[1771726462256,11.69618002,85.498,85.481,0.51746152]
[1771726463470,12.18383329,85.498,85.481,0.51746152]
[1771726465495,29.23053538,85.527,85.481,0.51746152]
[1771726465691,29.23053538,85.527,85.491,0.51746152]
[1771726466583,40.92274953,85.527,85.491,0.51746152]
[1771726467464,0.48765327,85.517,85.491,0.51746152]
[1771726467883,0.48765327,85.517,85.49,4.72464043]
[1771726471589,0.48765327,85.515,85.49,4.72464043]
[1771726474488,0.48765327,85.513,85.49,4.72464043]
[1771726475188,0.48765327,85.513,85.49,0.51746152]
[1771726478881,0.51847632,85.511,85.49,0.51746152]
[1771726484795,0.51847632,85.509,85.49,0.51746152]
[1771726487400,0.51847632,85.512,85.491,0.51101838]
[1771726487785,0.51847632,85.545,85.501,0.51101838]
[1771726488109,0.51847632,85.545,85.511,0.51101838]
[1771726488600,0.51847632,85.537,85.511,0.51101838]
[1771726489193,0.51847632,85.535,85.511,0.51101838]
[1771726490379,0.51847632,85.533,85.511,0.51101838]
[1771726493401,0.51847632,85.538,85.52,4.20717891]
[1771726493585,0.51847632,85.538,85.513,0.51101838]
[1771726494478,0.28432314,85.537,85.513,0.51101838]
[1771726494683,0.51847632,85.536,85.508,0.51101838]
[1771726494884,0.51847632,85.536,85.496,11.69639154]
[1771726494885,0.51847632,85.536,85.496,0.51101838]
[1771726495688,0.28432314,85.53,85.496,0.51101838]
[1771726495890,0.51847632,85.527,85.496,0.51101838]
[1771726497604,0.51847632,85.517,85.496,0.51101838]
[1771726497799,11.69371813,85.516,85.496,0.51101838]
[1771726497998,0.51847632,85.515,85.496,0.51101838]
[1771726498786,0.51847632,85.533,85.501,0.51101838]
[1771726499105,0.28432314,85.537,85.521,0.51101838]
[1771726499696,0.51847632,85.545,85.521,0.51101838]
[1771726499888,11.68961728,85.546,85.521,0.51101838]
[1771726499889,0.51847632,85.543,85.521,0.51101838]
[1771726500320,11.68989058,85.544,85.5,4.20717891]
[1771726500321,0.51847632,85.539,85.5,4.20717891]
[1771726500489,0.51847632,85.537,85.5,4.20717891]
[1771726501591,0.51847632,85.535,85.5,4.20717891]
[1771726502208,0.51847632,85.535,85.501,0.50273153]
[1771726505212,0.51847632,85.533,85.501,0.50273153]
[1771726507406,0.51847632,85.527,85.496,0.50126482]
[1771726510411,0.4758051,85.525,85.496,0.50126482]
[1771726512013,0.4758051,85.523,85.496,0.50126482]
[1771726513910,11.69289773,85.522,85.496,0.50126482]
[1771726514114,0.50779539,85.521,85.496,0.50126482]
[1771726516605,0.50779539,85.519,85.496,0.50126482]
[1771726518721,0.50779539,85.517,85.496,0.50126482]
[1771726518916,0.50779539,85.517,85.5,4.20551141]
[1771726519122,0.50779539,85.517,85.501,0.49683028]
[1771726521023,11.6928612,85.523,85.501,0.49683028]
[1771726521724,12.20065659,85.523,85.501,0.49683028]
[1771726524717,0.50779539,85.527,85.501,0.49683028]
[1771726527023,0.28432314,85.529,85.501,0.49683028]
[1771726527231,0.28432314,85.529,85.511,0.4946003]
[1771726527524,0.79211853,85.529,85.511,0.4946003]
[1771726527713,0.50779539,85.529,85.511,0.4946003]
[1771726528214,0.50779539,85.548,85.511,0.4946003]
[1771726528413,0.50779539,85.548,85.521,0.49433576]
[1771726528814,0.50779539,85.546,85.521,0.49433576]
[1771726531631,11.68975393,85.545,85.521,0.49433576]
[1771726537819,12.18275376,85.55,85.531,0.49161893]
[1771726539234,11.68916341,85.55,85.531,0.49161893]
[1771726541040,2.33855222,85.551,85.532,0.49093596]
[1771726541251,2.33855222,85.551,85.541,0.49093596]
[1771726542228,0.49359035,85.547,85.501,0.49071351]
[1771726542541,0.49359035,85.547,85.51,4.69622492]
[1771726542751,0.49359035,85.547,85.511,0.49049362]
[1771726546333,11.68961728,85.546,85.511,0.49049362]
[1771726546539,0.49359035,85.545,85.511,0.49049362]
[1771726550746,29.22267679,85.55,85.511,0.49049362]
[1771726550747,0.28432314,85.538,85.511,0.49049362]
[1771726551047,0.49359035,85.537,85.511,0.49049362]
[1771726552428,0.49359035,85.535,85.511,0.49049362]
[1771726554530,0.49359035,85.533,85.511,0.49049362]
[1771726557259,11.69153065,85.532,85.511,0.49049362]
[1771726560858,11.69087634,85.537,85.521,0.4869406]
[1771726561356,12.18446669,85.537,85.521,0.4869406]
[1771726561955,0.49359035,85.536,85.51,4.20551141]
[1771726562160,0.49359035,85.536,85.511,0.48676404]
[1771726562854,0.49359035,85.534,85.511,0.48676404]
[1771726564863,0.49359035,85.532,85.497,0.48624645]
[1771726566170,0.49359035,85.526,85.491,0.48607787]
[1771726566745,0.49359035,85.516,85.486,0.48591122]
[1771726568568,0.49359035,85.516,85.48,4.20551141]
[1771726568963,0.28432314,85.507,85.476,0.48558365]
[1771726569170,0.47348544,85.506,85.476,0.48558365]
[1771726569656,40.92849206,85.515,85.476,0.48558365]
[1771726569657,0.28432314,85.501,85.476,0.48558365]
[1771726569862,0.47348544,85.497,85.476,0.48558365]
[1771726570866,0.47348544,85.497,85.47,4.40551141]
[1771726571067,0.50700724,85.495,85.47,0.2]
[1771726572567,0.50700724,85.493,85.47,0.2]
[1771726574451,11.69700088,85.492,85.47,0.2]
[1771726574652,0.50700724,85.491,85.47,0.2]
[1771726574961,0.50700724,85.487,85.46,4.40551141]
[1771726575872,0.50700724,85.487,85.46,4.40935444]
[1771726578469,0.50700724,85.485,85.46,4.40935444]
[1771726579984,0.50700724,85.485,85.46,0.2]
[1771726580486,0.50700724,85.485,85.46,4.40935444]
[1771726582563,0.28432314,85.478,85.45,0.2]
[1771726582764,0.50700724,85.467,85.43,4.20935444]
[1771726582973,0.28432314,85.458,85.42,4.40935444]
[1771726583178,0.50700724,85.455,85.42,4.40935444]
[1771726584577,0.50700724,85.453,85.42,4.40935444]
[1771726584974,0.50700724,85.453,85.42,0.2]
[1771726585286,0.50700724,85.453,85.42,4.40935444]
[1771726586485,11.70247624,85.452,85.42,4.40935444]
[1771726586685,0.50700724,85.451,85.42,4.40935444]
[1771726586995,0.50700724,85.451,85.42,16.11619292]
[1771726588088,0.50700724,85.464,85.43,4.20935444]
[1771726588279,0.50700724,85.464,85.44,4.20935444]
[1771726589073,0.50700724,85.464,85.43,4.20935444]
[1771726589489,0.50700724,85.459,85.42,16.11619292]
[1771726593092,11.70165461,85.458,85.42,16.11619292]
[1771726593394,0.50700724,85.457,85.42,16.11619292]
[1771726596007,0.50700724,85.449,85.42,0.2]
[1771726596296,0.50700724,85.449,85.42,4.40935444]
[1771726601679,11.70192847,85.456,85.43,4.20935444]
[1771726601878,0.50700724,85.479,85.44,4.20935444]
[1771726602198,0.50700724,85.475,85.44,4.20935444]
[1771726602887,0.50700724,85.473,85.44,4.20935444]
[1771726607796,0.50700724,85.471,85.44,4.20935444]
[1771726613594,0.50700724,85.469,85.44,4.20935444]
[1771726615613,0.50700724,85.469,85.435,11.70467507]
[1771726615614,0.50700724,85.475,85.45,4.20935444]
[1771726616707,11.69928081,85.476,85.45,15.91205062]
[1771726616922,0.50700724,85.485,85.46,4.20935444]
[1771726618801,0.50700724,85.494,85.47,4.20935444]
[1771726622404,0.50700724,85.492,85.47,4.20935444]
[1771726625610,11.69713771,85.491,85.46,4.20935444]
[1771726625811,0.50700724,85.49,85.46,4.20935444]
[1771726627913,0.50700724,85.479,85.44,65.30935444]
[1771726628118,0.50700724,85.479,85.44,4.20935444]
[1771726628910,0.50700724,85.479,85.44,15.9134549]
[1771726629430,0.50700724,85.479,85.44,11.70410046]
[1771726631134,0.50700724,85.477,85.432,11.70521584]
[1771726635920,0.50700724,85.475,85.432,11.70521584]
[1771726636122,0.50700724,85.469,85.432,11.70521584]
[1771726638729,0.50700724,85.467,85.422,11.70658612]
[1771726638935,0.50700724,85.467,85.43,4.21140948]
[1771726640860,11.70055928,85.466,85.431,11.70535285]
[1771726641023,0.50700724,85.465,85.431,11.70535285]
[1771726641740,0.50700724,85.465,85.43,4.21140948]
[1771726641944,0.50700724,85.465,85.44,4.21140948]
[1771726642922,0.50700724,85.465,85.422,11.70646681]
[1771726643123,0.50700724,85.463,85.43,4.21140948]
[1771726646643,0.50700724,85.461,85.43,4.21140948]
[1771726649533,11.70110692,85.462,85.43,4.21140948]
[1771726649534,0.50700724,85.459,85.43,4.21140948]
[1771726653732,0.50700724,85.457,85.429,11.70558396]
[1771726655955,0.50700724,85.455,85.422,11.70658612]
[1771726665041,0.00700724,85.455,85.423,0.49029898]
[1771726666759,11.70181049,85.457,85.42,4.41140948]
[1771726666760,0.28432314,85.449,85.42,0.2]
[1771726667150,0.49035854,85.446,85.42,0.2]
[1771726668439,0.49035854,85.444,85.42,0.2]
[1771726671441,0.49035854,85.442,85.42,0.2]
[1771726673262,11.70398286,85.441,85.42,0.2]
[1771726673460,0.49035854,85.44,85.42,0.2]
[1771726680557,0.49035854,85.438,85.42,0.2]
[1771726682760,11.70453082,85.437,85.42,0.2]
[1771726682965,0.49035854,85.436,85.42,0.2]
[1771726684265,0.49035854,85.434,85.42,0.2]
[1771726686072,0.49035854,85.432,85.42,0.2]
[1771726688969,0.50027755,85.43,85.42,0.2]
[1771726690585,0.50027755,85.429,85.41,0.2]
[1771726691158,0.50027755,85.427,85.41,0.2]
[1771726691384,0.50027755,85.427,85.4,0.2]
[1771726692461,0.48685141,85.425,85.4,0.67195921]
[1771726692782,0.48685141,85.425,85.401,0.47195921]
[1771726697100,0.48685141,85.43,85.401,0.47195921]
[1771726701280,0.48685141,85.428,85.401,0.47195921]
[1771726702787,0.48685141,85.426,85.401,0.47195921]
[1771726706494,0.48685141,85.424,85.401,0.47195921]
[1771726709194,0.48685141,85.422,85.401,0.47195921]
[1771726716305,0.48685141,85.42,85.401,0.47195921]
[1771726716504,0.48685141,85.42,85.4,0.2]
[1771726718403,0.48685141,85.42,85.401,0.49411294]
[1771726741319,0.52870184,85.418,85.39,0.2]
[1771726741523,0.52870184,85.405,85.371,0.49411294]
[1771726741723,0.52870184,85.399,85.371,0.49411294]
[1771726742415,0.52870184,85.399,85.367,0.49411294]
[1771726742616,0.14216157,85.398,85.361,0.49411294]
[1771726742919,0.52870184,85.375,85.35,0.2]
[1771726743120,0.52870184,85.369,85.341,0.49411294]
[1771726743510,0.52870184,85.367,85.341,0.49411294]
[1771726744125,0.52870184,85.367,85.336,0.49411294]
[1771726744721,0.52870184,85.367,85.339,0.49411294]
[1771726744923,0.52870184,85.367,85.342,0.49411294]
[1771726745122,0.52870184,85.373,85.342,0.49411294]
[1771726746502,11.71344234,85.372,85.342,0.49411294]
[1771726746824,0.52870184,85.371,85.342,0.49411294]
[1771726747516,0.52870184,85.349,85.33,0.2]
[1771726749304,0.51870437,85.347,85.33,0.2]
[1771726754516,0.5352828,85.339,85.316,0.53850701]
[1771726754723,0.5352828,85.329,85.31,0.2]
[1771726755809,41.00953764,85.346,85.286,0.53850701]
[1771726755810,0.5352828,85.319,85.286,0.53850701]
[1771726756018,0.5352828,85.309,85.286,0.53850701]
[1771726756412,0.5352828,85.318,85.286,0.53850701]
[1771726756902,0.5352828,85.309,85.286,0.53850701]
[1771726759735,0.5352828,85.307,85.27,0.2]
[1771726759921,0.5352828,85.277,85.26,1e-08]
[1771726760117,0.5352828,85.277,85.25,1e-08]
[1771726760321,0.14216157,85.298,85.251,0.53850701]
[1771726760322,0.5352828,85.286,85.251,0.53850701]
[1771726761340,10.5759044,85.306,85.25,4.23093869]
[1771726761341,11.72145295,85.314,85.281,0.53850701]
[1771726761514,11.72145295,85.314,85.28,4.23093868]
[1771726761711,11.71978322,85.326,85.3,4.23093868]
[1771726761920,11.71978322,85.326,85.29,4.23093868]
[1771726762121,0.5352828,85.325,85.29,4.23093868]
[1771726762332,0.5352828,85.309,85.28,4.23093868]
[1771726763731,0.5352828,85.309,85.281,0.53850701]
[1771726765428,0.5352828,85.307,85.281,0.53850701]
[1771726766507,11.7203066,85.322,85.301,0.53850701]
[1771726770630,0.5352828,85.326,85.3,4.23093868]
[1771726772319,29.29527426,85.338,85.31,4.23093868]
[1771726772621,0.5352828,85.337,85.311,0.27321885]
[1771726776248,0.5352828,85.335,85.311,0.27321885]
[1771726777146,0.5352828,85.335,85.281,61.1]
[1771726777147,0.28432314,85.312,85.252,0.53850701]
[1771726777324,4.23093868,85.3,85.252,0.53850701]
[1771726777518,0.5352828,85.299,85.252,0.53850701]
[1771726777720,0.5352828,85.299,85.261,0.53850701]
[1771726777933,0.56839381,85.309,85.271,0.55013817]
[1771726779346,0.56839381,85.307,85.271,0.55013817]
[1771726780532,41.02780512,85.308,85.271,0.55013817]
[1771726782047,41.59619893,85.308,85.271,0.55013817]
[1771726782242,41.59619893,85.308,85.25,1e-08]
[1771726782243,11.72223003,85.308,85.281,0.55013817]
[1771726784342,0.56839381,85.312,85.281,0.55013817]
[1771726789552,0.56839381,85.31,85.281,0.55013817]
[1771726791848,12.29048643,85.309,85.281,0.55013817]
[1771726793544,11.72209262,85.309,85.281,0.55013817]
[1771726793742,11.72209262,85.309,85.277,11.72644041]
[1771726793743,11.72209262,85.309,85.291,0.55013817]
[1771726794977,0.56839381,85.315,85.291,0.55013817]
[1771726796550,0.56839381,85.315,85.272,0.55013817]
[1771726797650,4.23093868,85.32,85.272,0.55013817]
[1771726797651,0.56839381,85.313,85.272,0.55013817]
[1771726798576,0.56839381,85.313,85.274,0.55013817]
[1771726799477,0.56839381,85.309,85.274,0.55013817]
[1771726801170,4.23093868,85.31,85.274,0.55013817]
[1771726801171,0.56839381,85.307,85.274,0.55013817]
[1771726802179,0.56839381,85.307,85.264,61.1]
[1771726802180,0.56839381,85.307,85.281,0.55013817]
[1771726802351,11.72223003,85.308,85.281,0.55013817]
[1771726803059,0.56839381,85.31,85.281,0.55013817]
[1771726804471,11.72071871,85.319,85.291,0.55013817]
[1771726805460,11.71989452,85.325,85.291,0.55013817]
[1771726805676,0.56839381,85.324,85.291,0.55013817]
[1771726809058,4.80562928,85.32,85.291,0.55013817]
[1771726811681,11.72071871,85.319,85.291,0.55013817]
[1771726811971,0.5746906,85.318,85.291,0.55013817]
[1771726813793,0.61037026,85.309,85.288,52.5795251]
[1771726814281,0.61037026,85.309,85.278,52.5795251]
[1771726814973,0.61037026,85.299,85.278,52.5795251]
[1771726815678,0.61037026,85.299,85.279,0.63173463]
[1771726816071,0.61037026,85.315,85.279,0.63173463]
[1771726816275,11.72141385,85.314,85.281,0.63173463]
[1771726816681,0.61037026,85.313,85.281,0.63173463]
[1771726818679,0.61037026,85.311,85.281,0.63173463]
[1771726819374,0.61037026,85.309,85.271,0.63173463]
[1771726820482,11.7236043,85.298,85.271,0.63173463]
[1771726820687,0.61037026,85.297,85.271,0.63173463]
[1771726823881,11.72387919,85.296,85.271,0.63173463]
[1771726825094,0.61037026,85.319,85.272,0.63173463]
[1771726825278,0.61037026,85.316,85.283,0.63173463]